Workbook

Sheet YWAXBXL (hidden)

Sheet 2017年蓬江区一般公共预算收支预算明细表
A1: 2017年蓬江区一般公共预算收支表（按功能分类）
B3: 单位：万元 | C3: 单位：万元
A4: 支出
A5: 项目 | B5: 预算数 | C5: 预算数 | D5: 提前下达
A6: 一般公共服务支出 | B6: =SUM(B7,B13,B20,B29,B32,B37,B43,B45,B49,B52,B54,B57,B62,B70,B75,B80,B83,B87,B90,B96,B99,B103) -> 52,782 | C6: 50,667 | E6: =C6+D6 -> 50,667
A7: 人大事务 | B7: =SUM(B8:B12) -> 985 | C7: 1,110 | E7: =C7+D7 -> 1,110
A8: 行政运行 | B8: 495 | C8: 607 | E8: 607
A9: 一般行政管理事务 | B9: 99 | C9: 112 | E9: 112
A10: 人大会议 | B10: 36 | C10: 36 | E10: 36
A11: 代表工作 | B11: 249 | C11: 249 | E11: 249
A12: 其他人大事务支出 | B12: 106 | C12: 106 | E12: 106
A13: 政协事务 | B13: =SUM(B14:B19) -> 580 | C13: 579 | E13: 579
A14: 行政运行 | B14: 352 | C14: 350 | E14: 350
A15: 一般行政管理事务 | B15: 63 | C15: 63 | E15: 63
A16: 政协会议 | B16: 60 | C16: 60 | E16: 60
A17: 委员视察 | B17: 80 | C17: 80 | E17: 80
A18: 参政议政 | B18: 20 | C18: 20 | E18: 20
A19: 其他政协事务支出 | B19: 5 | C19: 6 | E19: 6
A20: 政府办公厅（室）及相关机构事务 | B20: =SUM(B21:B28) -> 21,639 | C20: 22,467 | E20: 22,467
A21: 行政运行 | B21: 16,353 | C21: 17,213 | E21: 17,213
A22: 一般行政管理事务 | B22: 2,372 | C22: 2,372 | E22: 2,372
A23: 机关服务 | B23: 20 | C23: 20 | E23: 20
A24: 专项业务活动 | B24: 86 | C24: 86 | E24: 86
A25: 法制建设 | B25: 34 | C25: 34 | E25: 34
A26: 信访事务 | B26: =617+30 -> 647 | C26: 617 | E26: 617
A27: 事业运行 | B27: 1,475 | C27: 1,473 | E27: 1,473
A28: 其他政府办公厅（室）及相关机构事务支出 | B28: 652 | C28: 652 | E28: 652
A29: 发展与改革事务 | B29: =SUM(B30:B31) -> 356 | C29: 439 | E29: 439
A30: 行政运行 | B30: 254
A31: 一般行政管理事务 | B31: 102
A32: 统计信息事务 | B32: =SUM(B33:B36) -> 270
A33: 行政运行 | B33: 78
A34: 一般行政管理事务 | B34: 46
A35: 专项普查活动 | B35: 112
A36: 其他统计信息事务支出 | B36: 34
A37: 财政事务 | B37: =SUM(B38:B42) -> 2,430
A38: 行政运行 | B38: 663
A39: 预算改革业务 | B39: 20
A40: 财政国库业务 | B40: 391
A41: 信息化建设 | B41: 37
A42: 其他财政事务支出 | B42: 1,319
A43: 税收事务 | B43: =SUM(B44) -> 8,953
A44: 其他税收事务支出 | B44: 8,953
A45: 审计事务 | B45: =SUM(B46:B48) -> 290
A46: 行政运行 | B46: 197
A47: 一般行政管理事务 | B47: 88
A48: 其他审计事务支出 | B48: 5
A49: 海关事务 | B49: =SUM(B50:B51) -> 70
A50: 一般行政管理事务 | B50: 60
A51: 缉私办案 | B51: 10
A52: 人力资源事务 | B52: =SUM(B53) -> 1,600
A53: 其他人力资源事务支出 | B53: 1,600
A54: 纪检监察事务 | B54: =SUM(B55:B56) -> 653
A55: 行政运行 | B55: 570
A56: 其他纪检监察事务支出 | B56: =3+80 -> 83
A57: 商贸事务 | B57: =SUM(B58:B61) -> 3,787
A58: 行政运行 | B58: 509
A59: 一般行政管理事务 | B59: 2,456
A60: 招商引资 | B60: 126
A61: 其他商贸事务支出 | B61: 696
A62: 工商行政管理事务 | B62: =SUM(B63:B69) -> 2,570
A63: 行政运行 | B63: 2,269
A64: 一般行政管理事务 | B64: 95
A65: 工商行政管理专项 | B65: 83
A66: 执法办案专项 | B66: 59
A67: 消费者权益保护 | B67: 24
A68: 信息化建设 | B68: 30
A69: 其他工商行政管理事务支出 | B69: 10
A70: 港澳台侨事务 | B70: =SUM(B71:B74) -> 247
A71: 行政运行 | B71: 119
A72: 一般行政管理事务 | B72: 40
A73: 华侨事务 | B73: 3
A74: 其他港澳台侨事务支出 | B74: 85
A75: 档案事务 | B75: =SUM(B76:B79) -> 181 | C75: 253 | E75: 253
A76: 行政运行 | B76: 15 | C76: 186 | E76: 186
A77: 一般行政管理事务 | B77: 119 | C77: 268 | E77: 268
A78: 档案馆 | B78: 31 | C78: 76 | E78: 76
A79: 其他档案事务支出 | B79: 16 | C79: 46 | E79: 46
A80: 民主党派及工商联事务 | B80: =SUM(B81:B82) -> 366 | C80: 112 | E80: 112
A81: 行政运行 | B81: 90 | C81: 34 | E81: 34
A82: 一般行政管理事务 | B82: =26+200+50 -> 276 | C82: 2,450 | E82: 2,450
A83: 群众团体事务 | B83: =SUM(B84:B86) -> 1,903 | C83: 663 | E83: 663
A84: 行政运行 | B84: 210 | C84: 20 | E84: 20
A85: 一般行政管理事务 | B85: 1,288 | C85: 411 | E85: 411
A86: 其他群众团体事务支出 | B86: 405 | C86: 37 | E86: 37
A87: 党委办公厅（室）及相关机构事务 | B87: =SUM(B88:B89) -> 2,821 | C87: 1,319 | E87: 1,319
A88: 行政运行 | B88: 1,311 | C88: 8,953 | E88: 8,953
A89: 一般行政管理事务 | B89: =1420+90 -> 1,510 | C89: 8,953 | E89: 8,953
A90: 组织事务 | B90: =SUM(B91:B95) -> 2,121 | C90: 290 | E90: 290
A91: 行政运行 | B91: 863 | C91: 197 | E91: 197
A92: 一般行政管理事务 | B92: 456 | C92: 88 | E92: 88
A93: 机关服务 | B93: =294+21-21 -> 294 | C93: 5 | E93: 5
A94: 事业运行 | B94: 44 | C94: 10 | E94: 10
A95: 其他组织事务支出 | B95: 464 | C95: 10 | E95: 10
A96: 统战事务 | B96: =SUM(B97:B98) -> 166 | C96: 573 | E96: 573
A97: 行政运行 | B97: 113 | C97: 570 | E97: 570
A98: 一般行政管理事务 | B98: 53 | C98: 3 | E98: 3
A99: 其他共产党事务支出 | B99: =SUM(B100:B102) -> 154 | C99: 3,465 | E99: 3,465
A100: 行政运行 | B100: 15 | C100: 479 | E100: 479
A101: 一般行政管理事务 | B101: 4 | C101: 2,836 | E101: 2,836
A102: 其他共产党事务支出 | B102: 135 | C102: 100 | E102: 100
A103: 其他一般公共服务支出 | B103: =SUM(B104) -> 640 | C103: 50 | E103: 50
A104: 其他一般公共服务支出 | B104: 640 | C104: 2,713 | E104: 2,713
A105: 国防支出 | B105: =SUM(B106,B108) -> 496 | C105: 2,269 | E105: 2,269
A106: 国防动员 | B106: =SUM(B107) -> 442 | C106: 102 | E106: 102
A107: 民兵 | B107: 442 | C107: 91 | E107: 91
A108: 其他国防支出 | B108: =SUM(B109) -> 54 | C108: 69 | E108: 69
A109: 其他国防支出 | B109: 54 | C109: 28 | E109: 28
A110: 公共安全支出 | B110: =SUM(B111,B113,B120,B122,B125,B132,B134) -> 27,381 | C110: 44 | E110: 44
A111: 武装警察 | B111: =SUM(B112) -> 589 | C111: 110 | E111: 110
A112: 消防 | B112: 589 | C112: 244 | E112: 244
A113: 公安 | B113: =SUM(B114:B119) -> 24,114 | C113: 116 | E113: 116
A114: 行政运行 | B114: 19,142 | C114: 40 | E114: 40
A115: 一般行政管理事务 | B115: 4,418 | C115: 3 | E115: 3
A116: 治安管理 | B116: 210 | C116: 85 | E116: =C116+D116 -> 85
A117: 禁毒管理 | B117: 10 | C117: 235 | E117: 235
A118: 道路交通管理 | B118: 2 | C118: 13 | E118: 13
A119: 其他公安支出 | B119: 332 | C119: 175 | E119: 175
A120: 检察 | B120: =SUM(B121) -> 523 | C120: 31 | E120: 31
A121: 一般行政管理事务 | B121: 523 | C121: 16 | E121: 16
A122: 法院 | B122: =SUM(B123:B124) -> 944 | C122: 109 | E122: 109
A123: 行政运行 | B123: 62 | C123: 83 | E123: 83
A124: 一般行政管理事务 | B124: 882 | C124: 26 | E124: 26
A125: 司法 | B125: =SUM(B126:B131) -> 858 | C125: 1,903 | E125: 1,903
A126: 行政运行 | B126: 582 | C126: 205 | E126: 205
A127: 基层司法业务 | B127: 36 | C127: 1,298 | E127: 1,298
A128: 律师公证管理 | B128: 150 | C128: 400 | E128: 400
A129: 法律援助 | B129: 18 | C129: 2,526 | E129: 2,526
A130: 事业运行 | B130: 46 | C130: 1,051 | E130: 1,051
A131: 其他司法支出 | B131: 26 | C131: 1,475 | E131: 1,475
A132: 国家保密 | B132: =SUM(B133) -> 37 | C132: 1,980 | E132: 1,980
A133: 一般行政管理事务 | B133: 37 | C133: 863 | E133: 863
A134: 其他公共安全支出 | B134: =SUM(B135) -> 316 | C134: 341 | E134: 341
A135: 其他公共安全支出 | B135: 316 | C135: 270 | E135: 270
A136: 教育支出 | B136: =SUM(B137,B142,B149,B152,B154,B156) -> 74,192 | C136: 42 | E136: 42
A137: 教育管理事务 | B137: =SUM(B138:B141) -> 969 | C137: 464 | E137: 464
A138: 行政运行 | B138: 645 | C138: 162 | E138: 162
A139: 一般行政管理事务 | B139: 90 | C139: 109 | E139: 109
A140: 机关服务 | B140: 57 | C140: 53 | E140: 53
A141: 其他教育管理事务支出 | B141: 177 | C141: 154 | E141: 154
A142: 普通教育 | B142: =SUM(B143:B148) -> 61,892 | C142: 15 | E142: 15
A143: 学前教育 | B143: 433 | C143: 4 | E143: 4
A144: 小学教育 | B144: 41,818 | C144: 135 | E144: 135
A145: 初中教育 | B145: 15,395 | C145: 37 | E145: 37
A146: 高中教育 | B146: 2,517 | C146: 37 | E146: 37
A147: 高等教育 | B147: 50 | C147: 460 | E147: 460
A148: 其他普通教育支出 | B148: 1,679 | C148: 406 | E148: 406
A149: 职业教育 | B149: =SUM(B150:B151) -> 1,722 | C149: 406 | E149: 406
A150: 中专教育 | B150: 1 | C150: 54 | E150: 54
A151: 职业高中教育 | B151: 1,721 | C151: 54 | E151: 54
A152: 特殊教育 | B152: =SUM(B153) -> 37 | C152: 27,613 | E152: 27,613
A153: 特殊学校教育 | B153: 37 | C153: 666 | E153: 666
A154: 教育费附加安排的支出 | B154: =SUM(B155) -> 9,367 | C154: 666 | E154: 666
A155: 其他教育费附加安排的支出 | B155: 9,367 | C155: 24,114 | E155: 24,114
A156: 其他教育支出 | B156: =SUM(B157) -> 205 | C156: 19,142 | E156: 19,142
A157: 其他教育支出 | B157: 205 | C157: 4,418 | E157: 4,418
A158: 科学技术支出 | B158: =SUM(B159,B163,B167,B169) -> 3,410 | C158: 210 | E158: 210
A159: 科学技术管理事务 | B159: =SUM(B160:B162) -> 253 | C159: 10 | E159: 10
A160: 行政运行 | B160: 187 | C160: 2 | E160: 2
A161: 一般行政管理事务 | B161: 41 | C161: 332 | E161: 332
A162: 其他科学技术管理事务支出 | B162: 25 | C162: 482 | E162: 482
A163: 技术研究与开发 | B163: =SUM(B164:B166) -> 2,627 | C163: 52 | E163: 52
A164: 应用技术研究与开发 | B164: 2,077 | C164: 430 | E164: 430
A165: 产业技术研究与开发 | B165: 350 | C165: 1,140 | E165: 1,140
A166: 其他技术研究与开发支出 | B166: 200 | C166: 510 | E166: 510
A167: 科学技术普及 | B167: =SUM(B168) -> 100 | C167: 630 | E167: 630
A168: 科普活动 | B168: 100 | C168: 858 | E168: 858
A169: 其他科学技术支出 | B169: =SUM(B170) -> 430 | C169: 582 | E169: 582
A170: 其他科学技术支出 | B170: 430 | C170: 36 | E170: 36
A171: 文化体育与传媒支出 | B171: =SUM(B172,B182,B185) -> 4,144 | C171: 150 | E171: 150
A172: 文化 | B172: =SUM(B173:B181) -> 3,662 | C172: 18 | E172: 18
A173: 行政运行 | B173: 341 | C173: 46 | E173: 46
A174: 一般行政管理事务 | B174: 1,169 | C174: 26 | E174: 26
A175: 图书馆 | B175: 238 | C175: 37 | E175: 37
A176: 文化活动 | B176: 61 | C176: 37 | E176: 37
A177: 群众文化 | B177: =30+21 -> 51 | C177: 316 | E177: 316
A178: 文化交流与合作 | B178: 15 | C178: 316 | E178: 316
A179: 文化创作与保护 | B179: 44 | C179: 72,597 | D179: =SUM(D185,D192,D197) -> 2672.03 | E179: 75,269
A180: 文化市场管理 | B180: 30 | C180: 940 | E180: =C180+D180 -> 940
A181: 其他文化支出 | B181: 1,713 | C181: 616 | E181: 616
A182: 文物 | B182: =SUM(B183:B184) -> 20 | C182: 90 | E182: 90
A183: 文物保护 | B183: 10 | C183: 57 | E183: 57
A184: 其他文物支出 | B184: 10 | C184: 177 | E184: 177
A185: 其他文化体育与传媒支出 | B185: =SUM(B186) -> 462 | C185: 58,564 | D185: =SUM(D186:D191) -> 2634.15 | E185: 61,198
A186: 其他文化体育与传媒支出 | B186: 462 | C186: 394 | D186: 36.42 | E186: 430
A187: 社会保障和就业支出 | B187: =SUM(B188,B195,B203,B207,B209,B215,B219,B223,B229,B232,B235,B238,B240,B243,B246) -> 47,408 | C187: 40,752 | D187: 771.12 | E187: 41,523
A188: 人力资源和社会保障管理事务 | B188: =SUM(B189:B194) -> 4,345 | C188: 13,192 | D188: 1807.34 | E188: 14,999
A189: 行政运行 | B189: 1,575 | C189: 2,504 | D189: 12.57 | E189: 2,517
A190: 一般行政管理事务 | B190: 209 | C190: 50 | E190: 50
A191: 机关服务 | B191: 57 | C191: 1,672 | D191: 6.7 | E191: 1,679
A192: 社会保险业务管理事务 | B192: 25 | C192: 1,721 | D192: =SUM(D193) -> 0.68 | E192: 1,722
A193: 社会保险经办机构 | B193: 283 | D193: 0.68 | E193: 1
A194: 其他人力资源和社会保障管理事务支出 | B194: 2,196 | C194: 1,721 | E194: 1,721
A195: 民政管理事务 | B195: =SUM(B196:B202) -> 3,793 | C195: 11,167 | E195: 11,167
A196: 行政运行 | B196: 224 | C196: 11,167 | E196: 11,167
A197: 一般行政管理事务 | B197: 350 | C197: 205 | D197: =SUM(D198) -> 37.2 | E197: 242
A198: 拥军优属 | B198: 414 | C198: 205 | D198: 37.2 | E198: 242
A199: 老龄事务 | B199: 621 | C199: 3,060 | E199: 3,060
A200: 行政区划和地名管理 | B200: 68 | C200: 253 | E200: 253
A201: 基层政权和社区建设 | B201: 997 | C201: 187 | E201: 187
... 232 more rows
